[Event "4th Tata Steel India Blitz Open 2022"]
[Site "Kolkota"]
[Date "2022.12.04"]
[Round "18.2"]
[White "Vidit, Santosh Gujrathi"]
[Black "Mamedyarov, Shakhriyar"]
[Result "1-0"]
[ECO "C45"]
[WhiteElo "2724"]
[BlackElo "2741"]
[Annotator "TA"]
[PlyCount "155"]
[EventDate "2022.11.29"]
[EventType "tourn"]
[EventCountry "IND"]
[SourceTitle "playchess.com"]
[Source "ChessBase"]
[SourceQuality "1"]
[TimeControl "180+2"]

{[%evp 11,155,-12,0,0,0,0,0,0,0,0,0,0,7,6,0,0,15,11,25,4,26,18,72,64,72,70,120,0,17,0,116,87,79,89,194,189,191,189,185,181,281,264,239,201,203,202,210,198,308,308,302,298,335,289,387,338,311,293,387,388,417,268,280,252,281,260,264,253,257,250,293,288,287,237,223,189,211,227,311,315,292,295,324,322,318,316,304,304,563,524,1216,1114,885,888,1309,1309,981,700,808,748,1002,960,893,895,987,593,980,882,572,280,280,112,1237,1185,1484,77,104,104,2646,2480,1262,802,1403,280,272,265,1263,162,221,119,201,119,296,202,193,83,221,126,12818,221,214,217,29968,1188,29982,29982]} 1. e4 {[%emt 0:00:02]} e5 {[%emt 0:00:00]} 2. Nf3 {[%emt 0:00:03]} Nc6 {[%emt 0:00:01]} 3. d4 {[%emt 0:00:04]} exd4 {[%emt 0:00:02]} 4. Nxd4 {[%emt 0:00:01]} Nf6 {[%emt 0:00:01]} 5. Nxc6 {[%emt 0:00:03]} bxc6 {[%emt 0:00:01]} 6. Nd2 {[%emt 0:00:02]} d5 {[%emt 0:00:03]} 7. exd5 {[%emt 0:00:01] C45: Scotch Game.} cxd5 {[%emt 0:00:01]} 8. Bb5+ {[%emt 0:00:01]} Bd7 {[%emt 0:00:01]} 9. Bxd7+ {[%emt 0:00:02] The position is equal.} Qxd7 {[%emt 0:00:02]} 10. O-O {[%emt 0:00:02]} Be7 {[%emt 0:00:01]} 11. b3 {[%emt 0:00:02]} O-O {[%emt 0:00:03]} 12. Bb2 {[%emt 0:00:01]} Rfe8 {[%emt 0:00:04]} 13. Qf3 {[%emt 0:00:03] [#]} a5 $146 {[%emt 0:00:04]} ({Predecessor:} 13... c5 14. Rad1 Rad8 15. Rfe1 h6 16. Nf1 d4 17. Ng3 Bd6 18. Nf5 Be5 19. Bc1 Re6 {0-1 (59) Matlakov,M (2698)-Tang,A (2538) Chess.com INT 2020}) 14. a4 {[%emt 0:00:05]} Ra6 {[%emt 0:00:24]} (14... Ng4 {keeps more tension.} 15. Rae1 Bd6 16. h3 Bh2+) 15. Rad1 {[%emt 0:00:05]} Bb4 {[%emt 0:00:29]} (15... Re6 $5) 16. Nc4 {[%emt 0:00:08][%cal Bd2c4,Bc4e3,Be3f5][%mdl 32]} Qe6 {[%emt 0:00:59]} (16... Ne4 $11 {remains equal.}) 17. Ne3 $16 {[%emt 0:00:28]} c6 {[%emt 0:00:01]} 18. Nf5 {[%emt 0:00:13]} (18. Bxf6 {simplifies} Qxf6 19. Qxf6 gxf6 20. Rd3) 18... Raa8 {[%emt 0:00:02] [#]} (18... Bf8 $14) 19. Qf4 {[%emt 0:00:48] White is more active.} (19. Nxg7 $1 $16 {[%mdl 512]} Kxg7 20. Rd3) 19... Nh5 $1 $11 {[%emt 0:00:14]} 20. Qf3 {[%emt 0:00:16]} ({Better is} 20. Qg5 $11 Qg6 21. h4) 20... Nf6 $1 $16 {[%emt 0:00:09]} 21. Rd3 {[%emt 0:00:10][%cal Of5g7] Hoping for Nxg7!} (21. Nxg7 {seems wilder.} Kxg7 22. Rd3 Qd6 23. Qxf6+ Qxf6 24. Rg3+) 21... Bf8 {[%emt 0:00:34]} 22. Nh6+ $1 {[%emt 0:00:18]} gxh6 {[%emt 0:00:19]} (22... Kh8 $16) 23. Bxf6 $18 {[%emt 0:00:12]} (23. Qxf6 $6 Qxf6 24. Bxf6 Bd6 $14) 23... Bg7 {[%emt 0:00:01]} 24. Bxg7 {[%emt 0:00:05]} Kxg7 {[%emt 0:00:01]} 25. Qf4 {[%emt 0:00:04]} Kh8 {[%emt 0:00:06]} (25... c5 $142 26. Re3 (26. Qc7 Rec8 $16) 26... Qc6 27. Rg3+ (27. Rf3 Re7 $16) 27... Kf8) 26. Re3 {[%emt 0:00:07]} Qg6 {[%emt 0:00:03]} 27. Rg3 {[%emt 0:00:02]} Qe6 {[%emt 0:00:01]} 28. Qd4+ {[%emt 0:00:07]} f6 {[%emt 0:00:01]} 29. Re3 $40 {[%emt 0:00:08][%mdl 128] Prevents Qe5. White is out for blood.} Qf7 {[%emt 0:00:03]} (29... Qf5 $142 30. Qc3 Re6) 30. Rfe1 {[%emt 0:00:01]} Rxe3 {[%emt 0:00:04]} 31. Rxe3 {[%emt 0:00:01][%mdl 4096] Endgame KQR-KQR} (31. Qxe3 $6 Qg6 32. Qc3 Re8 $18) 31... Rf8 {[%emt 0:00:04]} 32. Qc5 {[%emt 0:00:03][%csl LRa5,LRc6]} Re8 {[%emt 0:00:03]} 33. Qxc6 {[%emt 0:00:04]} Rxe3 {[%emt 0:00:01]} 34. fxe3 {[%emt 0:00:02] KQ-KQ} Qe7 {[%emt 0:00:01]} 35. Kf2 {[%emt 0:00:04]} (35. Qxd5 Qxe3+ 36. Kf1 Qc1+ 37. Kf2 Qxc2+ 38. Kg3 Kg7 $11) 35... Qe5 {[%emt 0:00:03]} 36. Qc8+ {[%emt 0:00:07]} Kg7 {[%emt 0:00:00]} 37. Qg4+ {[%emt 0:00:03]} Kh8 38. Qf4 {[%emt 0:00:03] Threatens to win with Qxe5.} Qc3 {[%emt 0:00:02]} 39. Qf5 {[%emt 0:00:03]} (39. Qxh6 $6 Qxc2+ 40. Kg3 Kg8 $16) 39... Qd2+ {[%emt 0:00:01]} 40. Kf3 {[%emt 0:00:01]} Qd1+ {[%emt 0:00:00]} 41. Kg3 {[%emt 0:00:01] Qc8+ is the strong threat.} Qe1+ {[%emt 0:00:01]} 42. Qf2 {[%emt 0:00:04]} Qc3 {[%emt 0:00:01]} 43. Qf4 {[%emt 0:00:03]} Kg7 {[%emt 0:00:03]} 44. Qg4+ {[%emt 0:00:03]} Kh8 {[%emt 0:00:02]} 45. Qd4 {[%emt 0:00:01]} Qc7+ {[%emt 0:00:03]} 46. Kf3 {[%emt 0:00:02]} Qc6 {[%emt 0:00:02]} 47. c3 {[%emt 0:00:02]} Kg7 {[%emt 0:00:01]} 48. h3 {[%emt 0:00:01]} (48. Qa7+ $6 Kg6 $18) 48... h5 {[%emt 0:00:02]} 49. Ke2 {[%emt 0:00:03]} ({Don't do} 49. Qa7+ $6 Kg6 $18) 49... Qb7 $2 {[%emt 0:00:02]} (49... Kf8 50. b4 axb4 51. cxb4 Qxa4 52. Qxf6+ Ke8 53. Qe6+ Kf8 54. Qd6+ Kg7 55. Qxd5 Qxb4 56. Qd4+ Qxd4 57. exd4 Kg6) 50. b4 {[%emt 0:00:02]} axb4 {[%emt 0:00:01]} 51. cxb4 Qc6 {[%emt 0:00:00]} 52. b5 {[%emt 0:00:03]} Qc2+ {[%emt 0:00:01]} 53. Kf3 {[%emt 0:00:02]} h4 {[%emt 0:00:06]} 54. Qg4+ {[%emt 0:00:03]} Kf7 {[%emt 0:00:01]} 55. Qh5+ {[%emt 0:00:02]} ({Not} 55. Qxh4 Qd1+ 56. Kf2 Qd2+ 57. Kg1 Qxe3+ 58. Qf2 Qc3 $18) 55... Kg7 {[%emt 0:00:01]} 56. Qxh4 {[%emt 0:00:02]} Qd1+ {[%emt 0:00:01]} 57. Kf2 {[%emt 0:00:01] And now Qg4+ would win.} Qd2+ {[%emt 0:00:01]} 58. Kf1 {[%emt 0:00:02]} Qxe3 {[%emt 0:00:04]} 59. Qg4+ {[%emt 0:00:02]} Kh6 {[%emt 0:00:01]} 60. Qd1 {[%emt 0:00:03]} (60. Qf3 $142 Qc1+ 61. Kf2) 60... d4 {[%emt 0:00:03]} 61. b6 {[%emt 0:00:02]} (61. Qf3 $18 {is more deadly.} Qc1+ 62. Ke2 Qc2+ 63. Kf1 Qc1+ 64. Kf2 Qb2+ 65. Qe2) 61... d3 $2 {[%emt 0:00:03][%mdl 8192]} (61... Qf4+ $16 62. Kg1 (62. Qf3 Qc1+ 63. Kf2 Qb2+ 64. Ke1 Qb1+ 65. Ke2 Qxb6 $11) 62... Qe3+ 63. Kh2 d3) 62. b7 {[%emt 0:00:01]} Qf4+ {[%emt 0:00:02]} 63. Kg1 $2 {[%emt 0:00:02]} (63. Qf3 $18 {and the rest is easy.} Qc1+ 64. Kf2 Qb2+ 65. Ke3 Qe5+ 66. Kxd3) 63... Qe3+ {[%emt 0:00:01]} 64. Kh2 {[%emt 0:00:02]} Qe5+ $2 {[%emt 0:00:05][%mdl 8192]} (64... Qf4+ $16 65. Kh1 d2) 65. Kh1 $1 {[%emt 0:00:02][%cal Od1f1] Qf1! would kill now.} Qb2 {[%emt 0:00:08]} 66. Qxd3 {[%emt 0:00:03] Threatening mate with Qe3+.} Qxb7 {[%emt 0:00:01]} 67. Qe3+ $2 {[%emt 0:00:02]} (67. a5 Qb2 68. Qd6) 67... Kg6 {[%emt 0:00:02]} 68. Qg3+ {[%emt 0:00:01]} Kh6 $2 {[%emt 0:00:03]} (68... Kf7 69. Qd3 Qc6 70. Qxh7+ Kf8 71. Qh6+ Kf7) 69. Qf4+ $2 {[%emt 0:00:01]} (69. Qd6 Qb1+ 70. Kh2) 69... Kg6 {[%emt 0:00:01] [#]} (69... Kg7 $142 70. Qg4+ Kf8) 70. Qg4+ {[%emt 0:00:04]} (70. a5 $1 $18 {Black must now prevent Qg3+.} Qb5 71. Qe4+ Kg7 72. Qe7+ Kg6 73. Qa3) 70... Kh6 {[%emt 0:00:01]} (70... Kf7 $16 {was worth a try.} 71. Qf5 Kg7) 71. Qf5 {[%emt 0:00:02]} ({White should try} 71. a5 $18) 71... Qc6 $2 {[%emt 0:00:04]} (71... Kg7 $16 {might work better.} 72. a5 Qa6) 72. Qf4+ {[%emt 0:00:03]} Kg6 {[%emt 0:00:01] [#]} 73. a5 {[%emt 0:00:01]} (73. Qg3+ $1 $18 Kf7 74. a5) 73... Qb5 {[%emt 0:00:04]} (73... Qc3 $16) 74. Qg3+ {[%emt 0:00:01]} (74. Qe4+ $18 Kg7 75. Qe7+ Kg6 76. Qa3) 74... Kh6 $2 {[%emt 0:00:02][%mdl 8192]} (74... Kf7 $16) 75. Qe3+ $2 {[%emt 0:00:02]} (75. Qd6 Kg6 76. a6) 75... Kg6 {[%emt 0:00:00]} 76. Qa3 {[%emt 0:00:03] Intending a6 and mate.} Qf1+ $2 {[%emt 0:00:03]} (76... Qa6 77. Kg1 Kf7 78. Qa2+ Kf8) 77. Kh2 {[%emt 0:00:01] White threatens a6 and mate.} Qf4+ {[%emt 0:00:00]} 78. Qg3+ {[%emt 0:00:01] Weighted Error Value: White=0.27 (precise) /Black=0.30} 1-0

[Event "4th Tata Steel India Blitz Open 2022"]
[Site "Kolkota"]
[Date "2022.12.04"]
[Round "18.3"]
[White "Nihal Sarin"]
[Black "Erigaisi Arjun"]
[Result "1/2-1/2"]
[ECO "A01"]
[WhiteElo "2670"]
[BlackElo "2718"]
[Annotator "TA"]
[PlyCount "112"]
[EventDate "2022.11.29"]
[EventType "tourn"]
[EventCountry "IND"]
[SourceTitle "playchess.com"]
[Source "ChessBase"]
[SourceQuality "1"]
[TimeControl "180+2"]

{[%evp 10,112,7,7,28,0,0,0,0,5,12,-6,0,-25,0,0,0,0,31,26,35,12,34,16,64,58,52,57,99,11,12,0,0,0,0,0,0,-21,-16,-22,-19,-350,-328,-262,14,14,13,13,14,0,0,0,0,6,10,-3,0,-4,0,0,0,0,0,0,0,0,0,0,0,0,0,0,0,0,0,0,0,0,0,0,0,0,0,0,0,0,0,0,0,0,0,0,0,0,0,0,0,0,0,0,0,0,0,0,0]} 1. b3 {[%emt 0:00:01]} e5 {[%emt 0:00:03]} 2. Bb2 {[%emt 0:00:00]} Nc6 {[%emt 0:00:01]} 3. e3 {[%emt 0:00:01]} d5 {[%emt 0:00:11]} 4. Bb5 {[%emt 0:00:03]} Bd6 {[%emt 0:00:02]} 5. Nf3 {[%emt 0:00:07]} f6 {[%emt 0:00:10]} 6. c4 {[%emt 0:00:07]} Nge7 {[%emt 0:00:11][%cal Bg8e7,Be7d5,Bd5c3][%mdl 32] A01: Nimzowitsch-Larsen Opening.} (6... a6 $5 {[%cal Ra6b5]} 7. Bxc6+ bxc6 $11) 7. cxd5 {[%emt 0:00:03]} Nxd5 {[%emt 0:00:02]} 8. Nc3 {[%emt 0:00:01]} Nxc3 {[%emt 0:00:06]} 9. Bxc3 {[%emt 0:00:01] [#]} O-O $146 {[%emt 0:00:06]} ({Predecessor:} 9... Bd7 10. Bxc6 Bxc6 11. Nxe5 fxe5 12. Bxe5 Bxe5 13. Qh5+ Kd7 14. Qxe5 Kc8 15. Qxg7 Rg8 16. Qxh7 Rxg2 {0-1 (39) Ribas Castells,J (1935)-Ponce Cano,A (1929) Palma de Mallorca 2012}) 10. Bxc6 {[%emt 0:00:01]} bxc6 {[%emt 0:00:01]} 11. d3 {[%emt 0:00:01]} Ba6 {[%emt 0:00:05]} 12. Qc2 {[%emt 0:00:01]} Qe8 {[%emt 0:00:18]} 13. e4 {[%emt 0:00:04]} Rd8 {[%emt 0:00:07]} 14. O-O {[%emt 0:00:04]} Qh5 {[%emt 0:00:07]} 15. Rad1 {[%emt 0:00:08]} f5 {[%emt 0:00:10] aiming for ...fxe4.} 16. Rfe1 {[%emt 0:00:27]} fxe4 {[%emt 0:00:27]} (16... c5 $11) 17. Rxe4 $14 {[%emt 0:00:02]} Rxf3 {[%emt 0:00:08]} 18. gxf3 {[%emt 0:00:01]} c5 {[%emt 0:00:01] [#]} 19. Qe2 {[%emt 0:01:25]} (19. Rg4 Rf8 $14) (19. Rde1 $1 $16) 19... Bb7 $11 {[%emt 0:00:01] [#]} 20. Re1 $1 {[%emt 0:00:01]} Rf8 {[%emt 0:00:16]} 21. Kg2 {[%emt 0:00:31]} Rf6 {[%emt 0:00:03]} 22. Rg1 {[%emt 0:00:06]} h6 {[%emt 0:00:31]} 23. h3 {[%emt 0:00:08]} Bxe4 {[%emt 0:00:07]} (23... Ba8 {is more complex.} 24. Bb2 Bc6 25. Qe3 Bxe4 26. Qxe4 Kf7) 24. dxe4 {[%emt 0:00:02]} ({But not} 24. Qxe4 Rf4 25. Qd5+ Kh7 $15) 24... Kh7 {[%emt 0:00:08]} 25. Rh1 $2 {[%emt 0:00:16][%mdl 8192]} (25. Bb2 $11 {and White is okay.}) 25... Qg5+ $19 {[%emt 0:00:04]} 26. Kf1 {[%emt 0:00:01]} Qf4 {[%emt 0:00:04]} (26... Rg6 $19 {Threatens to win with ...Qg2+.} 27. Qd1 Qg2+ 28. Ke2 Rf6) 27. Bd2 $11 {[%emt 0:00:04] The position is equal.} Qxf3 {[%emt 0:00:05]} 28. Qxf3 {[%emt 0:00:01]} Rxf3 {[%emt 0:00:01][%mdl 4096] Endgame KRB-KRB} 29. Ke2 {[%emt 0:00:00]} Rf6 {[%emt 0:00:05]} 30. Be3 {[%emt 0:00:01]} Be7 {[%emt 0:00:03]} 31. Rc1 {[%emt 0:00:03]} Ra6 {[%emt 0:00:02]} 32. Rc2 {[%emt 0:00:04]} Kg6 {[%emt 0:00:02]} 33. Kf3 {[%emt 0:00:05]} Kf6 {[%emt 0:00:09]} 34. Bxc5 {[%emt 0:00:04]} Bxc5 {[%emt 0:00:01]} 35. Rxc5 {[%emt 0:00:00]} Rxa2 {[%emt 0:00:01] KR-KR} 36. Rc6+ {[%emt 0:00:01]} Kf7 {[%emt 0:00:02]} 37. Rxc7+ {[%emt 0:00:01]} Kf6 {[%emt 0:00:01]} 38. Rc6+ {[%emt 0:00:01]} Kf7 {[%emt 0:00:01]} 39. h4 {[%emt 0:00:02]} h5 {[%emt 0:00:01]} 40. Rc7+ {[%emt 0:00:01]} Kf6 {[%emt 0:00:01]} 41. Rc6+ {[%emt 0:00:01]} Kf7 {[%emt 0:00:01]} 42. Kg3 {[%emt 0:00:03]} Rb2 {[%emt 0:00:02]} 43. Rc7+ {[%emt 0:00:04]} Kf6 {[%emt 0:00:02]} 44. Rxa7 {[%emt 0:00:00]} Rxb3+ {[%emt 0:00:01]} 45. f3 {[%emt 0:00:01]} Rb6 {[%emt 0:00:01]} 46. Ra8 {[%emt 0:00:01]} Rb1 {[%emt 0:00:04]} 47. Rf8+ {[%emt 0:00:01]} Ke6 {[%emt 0:00:03]} 48. Re8+ {[%emt 0:00:03]} Kf6 {[%emt 0:00:01]} 49. Rf8+ {[%emt 0:00:01]} Ke6 {[%emt 0:00:01]} 50. Ra8 {[%emt 0:00:02]} g6 {[%emt 0:00:05]} 51. Ra6+ {[%emt 0:00:01]} Kf7 {[%emt 0:00:01]} 52. Ra7+ {[%emt 0:00:02]} Kf6 {[%emt 0:00:01]} 53. Ra6+ {[%emt 0:00:01]} Kf7 {[%emt 0:00:01]} 54. Ra3 {[%emt 0:00:02]} Rg1+ {[%emt 0:00:03]} 55. Kf2 {[%emt 0:00:02]} Rh1 {[%emt 0:00:01]} 56. Kg3 {[%emt 0:00:01]} Kf6 {[%emt 0:00:02] Weighted Error Value: White=0.17 (very precise) /Black=0.14 (very precise)} 1/2-1/2

[Event "4th Tata Steel India Blitz Open 2022"]
[Site "Kolkota"]
[Date "2022.12.04"]
[Round "18.4"]
[White "Abdusattorov, Nodirbek"]
[Black "Maghsoodloo, Parham"]
[Result "1/2-1/2"]
[ECO "C50"]
[WhiteElo "2713"]
[BlackElo "2720"]
[Annotator "TA"]
[PlyCount "241"]
[EventDate "2022.11.29"]
[EventType "tourn"]
[EventCountry "IND"]
[SourceTitle "playchess.com"]
[Source "ChessBase"]
[SourceQuality "1"]
[TimeControl "180+2"]

{[%evp 72,241,0,0,0,-38,-38,-38,-38,-38,-36,-42,-38,-114,-32,-74,-74,-135,-72,-91,-91,-151,-142,-140,-95,-122,0,0,0,-14,0,0,0,0,0,0,0,0,0,0,0,0,0,0,0,0,0,0,0,0,0,0,0,0,0,0,0,0,0,0,0,0,0,0,0,0,0,0,0,0,0,0,0,0,0,0,0,0,0,0,0,-31,-19,-34,0,0,0,0,0,0,0,0,0,0,0,0,0,0,0,0,0,0,0,0,0,0,0,0,0,0,0,0,0,0,0,0,0,0,0,0,0,0,0,0,0,0,0,0,0,0,0,0,0,0,0,0,0,0,0,0,0,0,0,0,0,0,0,0,0,0,0,0,0,0,0,0,0,0,0,0,0,0,0,0,0,0,0,0,0,0,0,-11]} 1. e4 {[%emt 0:00:01]} e5 {[%emt 0:00:03]} 2. Nf3 {[%emt 0:00:02]} Nc6 {[%emt 0:00:01]} 3. Bc4 {[%emt 0:00:01]} Bc5 {[%emt 0:00:02]} 4. d3 {[%emt 0:00:02]} Nf6 {[%emt 0:00:03]} 5. Nc3 {[%emt 0:00:02]} h6 {[%emt 0:00:09]} 6. O-O {[%emt 0:00:02]} O-O {[%emt 0:00:06]} 7. h3 {[%emt 0:00:01]} d6 {[%emt 0:00:03]} 8. Na4 {[%emt 0:00:02]} Bb6 {[%emt 0:00:08]} 9. a3 {[%emt 0:00:05]} Be6 {[%emt 0:00:04]} 10. Bxe6 {[%emt 0:00:04]} fxe6 {[%emt 0:00:01]} 11. c3 {[%emt 0:00:02]} Qe8 {[%emt 0:00:28]} 12. b4 {[%emt 0:00:04]} Ne7 {[%emt 0:00:05]} 13. Re1 {[%emt 0:00:12]} Ng6 {[%emt 0:00:02]} 14. d4 {[%emt 0:00:06]} Nd7 {[%emt 0:00:14]} 15. Be3 {[%emt 0:00:11]} Rf6 {[%emt 0:00:09]} 16. Nh2 {[%emt 0:00:12]} Nf4 {[%emt 0:00:20]} 17. Ng4 {[%emt 0:00:03]} Rf8 {[%emt 0:00:02]} 18. Nxb6 {[%emt 0:00:09]} axb6 {[%emt 0:00:02]} 19. Bxf4 {[%emt 0:00:22]} Rxf4 {[%emt 0:00:02]} 20. g3 {[%emt 0:00:04]} Rf8 {[%emt 0:00:06]} 21. a4 {[%emt 0:00:14]} Qg6 {[%emt 0:00:04]} 22. Nh2 {[%emt 0:00:17]} Rf6 {[%emt 0:00:01]} 23. Ra2 {[%emt 0:00:03]} Raf8 {[%emt 0:00:02]} 24. Re3 {[%emt 0:00:20]} Rf4 {[%emt 0:00:33]} 25. Rae2 {[%emt 0:00:09]} h5 {[%emt 0:00:05]} 26. Kg2 {[%emt 0:00:13]} h4 {[%emt 0:00:10]} 27. Ng4 {[%emt 0:00:05]} hxg3 {[%emt 0:00:08]} 28. fxg3 {[%emt 0:00:03]} exd4 {[%emt 0:00:08]} 29. cxd4 {[%emt 0:00:01]} R4f7 {[%emt 0:00:05]} 30. e5 {[%emt 0:00:04]} dxe5 {[%emt 0:00:08]} 31. dxe5 {[%emt 0:00:05]} Nb8 {[%emt 0:00:05]} 32. b5 {[%emt 0:00:01]} Nd7 {[%emt 0:00:01]} 33. Qc2 {[%emt 0:00:04]} Qxc2 {[%emt 0:00:13]} 34. Rxc2 {[%emt 0:00:01]} Nc5 {[%emt 0:00:01]} 35. a5 {[%emt 0:00:04]} Rd8 {[%emt 0:00:03]} 36. Ra3 {[%emt 0:00:09]} Ra8 {[%emt 0:00:07]} 37. Ne3 {[%emt 0:00:11]} Rd7 {[%emt 0:00:02]} 38. Nc4 {[%emt 0:00:07]} bxa5 {[%emt 0:00:01]} 39. Rxa5 {[%emt 0:00:01]} Rxa5 {[%emt 0:00:01]} 40. Nxa5 {[%emt 0:00:01]} Rd5 {[%emt 0:00:05]} 41. Nc4 {[%emt 0:00:02]} b6 {[%emt 0:00:02]} 42. Ra2 {[%emt 0:00:07]} ({White should play} 42. h4 $15) 42... Nd3 {[%emt 0:00:02]} (42... Nb3 $17 {Hoping for ...Nd4.} 43. Ra7 Rc5) 43. Ra8+ {[%emt 0:00:06] [#]} Kh7 $1 {[%emt 0:00:04]} 44. Re8 {[%emt 0:00:03]} (44. Rc8 $142) 44... Rc5 {[%emt 0:00:01]} ({Worse is} 44... Nxe5 45. Nxe5 Rxe5 46. Re7 $15) (44... Rxb5 $142 {...Rc5 is the strong threat.} 45. Rxe6 Rc5) 45. Ne3 {[%emt 0:00:03]} Rxe5 {[%emt 0:00:02]} 46. Ng4 {[%emt 0:00:05]} (46. Kf3 $142) 46... Rxb5 $17 {[%emt 0:00:02]} 47. Rxe6 {[%emt 0:00:02]} Rc5 {[%emt 0:00:02]} 48. Re3 {[%emt 0:00:06]} Rd5 {[%emt 0:00:06]} (48... Nb4 $17 {Threatens to win with ...b5.} 49. Kf3 Nc6) 49. Re7 $11 {[%emt 0:00:01]} Rc5 {[%emt 0:00:01]} 50. Nf6+ {[%emt 0:00:01]} Kg6 {[%emt 0:00:01]} 51. Ne8 {[%emt 0:00:01]} Re5 {[%emt 0:00:01]} 52. Rxg7+ {[%emt 0:00:02]} Kh6 {[%emt 0:00:01]} 53. Rxc7 {[%emt 0:00:02]} Rxe8 {[%emt 0:00:01]} 54. Rc6+ {[%emt 0:00:01]} Kg5 {[%emt 0:00:02]} 55. Rxb6 {[%emt 0:00:01]} Re3 {[%emt 0:00:01]} 56. Rb5+ {[%emt 0:00:01]} Ne5 {[%emt 0:00:03]} 57. Kf2 {[%emt 0:00:02]} Re4 {[%emt 0:00:02]} 58. Ra5 {[%emt 0:00:02]} Kf6 {[%emt 0:00:01]} 59. Ra6+ {[%emt 0:00:01]} Kf5 {[%emt 0:00:01]} 60. Ra8 {[%emt 0:00:05]} Nd3+ {[%emt 0:00:05]} 61. Kf3 {[%emt 0:00:01]} Ne5+ {[%emt 0:00:01]} 62. Kf2 {[%emt 0:00:01]} Rb4 {[%emt 0:00:05]} 63. Rf8+ {[%emt 0:00:01]} Kg5 {[%emt 0:00:02]} 64. Kg2 {[%emt 0:00:01]} Rb2+ {[%emt 0:00:02]} 65. Rf2 {[%emt 0:00:01]} Rb3 {[%emt 0:00:00]} 66. Re2 {[%emt 0:00:01]} Nf7 {[%emt 0:00:04]} 67. Ra2 {[%emt 0:00:02]} Nd6 {[%emt 0:00:02]} 68. Ra5+ {[%emt 0:00:01]} Kf6 {[%emt 0:00:02]} 69. Ra6 {[%emt 0:00:01]} Ke5 {[%emt 0:00:01]} 70. Ra5+ {[%emt 0:00:01]} Ke4 {[%emt 0:00:01]} 71. Ra4+ {[%emt 0:00:07]} Ke3 {[%emt 0:00:01]} 72. g4 {[%emt 0:00:05]} Ne4 {[%emt 0:00:01]} 73. Ra2 {[%emt 0:00:02]} Kf4 {[%emt 0:00:01]} 74. g5 {[%emt 0:00:07]} Rg3+ {[%emt 0:00:04]} 75. Kf1 {[%emt 0:00:01]} Rxg5 {[%emt 0:00:03]} 76. Ra3 {[%emt 0:00:02]} Rd5 {[%emt 0:00:05]} 77. Ra8 {[%emt 0:00:01]} Kf3 {[%emt 0:00:01]} 78. Rf8+ {[%emt 0:00:01]} Ke3 {[%emt 0:00:01]} 79. h4 {[%emt 0:00:01]} Rd2 {[%emt 0:00:02]} 80. Re8 {[%emt 0:00:01]} Rh2 {[%emt 0:00:02]} 81. h5 {[%emt 0:00:01]} Rxh5 {[%emt 0:00:03]} 82. Kg2 {[%emt 0:00:01]} Rg5+ {[%emt 0:00:02]} 83. Kf1 {[%emt 0:00:01]} Rg4 {[%emt 0:00:02]} 84. Re7 {[%emt 0:00:02]} Rg8 {[%emt 0:00:02]} 85. Re5 {[%emt 0:00:04]} Kf4 {[%emt 0:00:02]} 86. Re7 {[%emt 0:00:01]} Kf3 {[%emt 0:00:01]} 87. Rf7+ {[%emt 0:00:01]} Ke3 {[%emt 0:00:01]} 88. Re7 {[%emt 0:00:00]} Rg4 {[%emt 0:00:04]} 89. Re8 {[%emt 0:00:02]} Rg5 {[%emt 0:00:02]} 90. Re7 {[%emt 0:00:02]} Rg6 {[%emt 0:00:03]} 91. Re8 {[%emt 0:00:01]} Rg7 {[%emt 0:00:01]} 92. Re5 {[%emt 0:00:00]} Kf4 {[%emt 0:00:01]} 93. Re8 {[%emt 0:00:02]} Rd7 {[%emt 0:00:02]} 94. Ke1 {[%emt 0:00:03]} Ke3 {[%emt 0:00:01]} 95. Kf1 {[%emt 0:00:03]} Rd2 {[%emt 0:00:03]} 96. Re7 {[%emt 0:00:02]} Rf2+ {[%emt 0:00:02]} 97. Ke1 {[%emt 0:00:04]} Rh2 {[%emt 0:00:03]} 98. Kf1 {[%emt 0:00:01]} Rh5 {[%emt 0:00:03]} 99. Re8 $1 {[%emt 0:00:02]} Rh6 {[%emt 0:00:02]} 100. Re7 {[%emt 0:00:04]} Kf3 {[%emt 0:00:01]} 101. Rf7+ {[%emt 0:00:00]} Nf6 {[%emt 0:00:01]} 102. Ke1 {[%emt 0:00:04]} Ke3 {[%emt 0:00:01]} 103. Kd1 {[%emt 0:00:02]} Kd3 {[%emt 0:00:01]} 104. Kc1 {[%emt 0:00:02]} Nd5 {[%emt 0:00:02]} 105. Kb2 {[%emt 0:00:02]} Rb6+ {[%emt 0:00:01]} 106. Kc1 {[%emt 0:00:03]} Ne3 {[%emt 0:00:02]} 107. Rd7+ {[%emt 0:00:03]} Kc3 {[%emt 0:00:01]} 108. Rc7+ {[%emt 0:00:01]} Nc4 {[%emt 0:00:01]} 109. Rc8 {[%emt 0:00:01]} Rg6 {[%emt 0:00:01]} 110. Kd1 {[%emt 0:00:01]} Kd3 {[%emt 0:00:02]} 111. Rd8+ {[%emt 0:00:03]} Nd6 {[%emt 0:00:01]} 112. Ke1 {[%emt 0:00:02]} Ke3 {[%emt 0:00:02]} 113. Kd1 {[%emt 0:00:02]} Kd3 {[%emt 0:00:04]} 114. Ke1 {[%emt 0:00:00]} Rf6 {[%emt 0:00:01]} 115. Ra8 {[%emt 0:00:06]} Nb5 {[%emt 0:00:03]} 116. Rd8+ {[%emt 0:00:02]} Nd4 {[%emt 0:00:00]} 117. Rd7 {[%emt 0:00:02]} Rf8 {[%emt 0:00:02]} 118. Rd5 {[%emt 0:00:01]} Kc4 {[%emt 0:00:04]} 119. Rd7 {[%emt 0:00:03]} Kc3 {[%emt 0:00:01]} 120. Rc7+ {[%emt 0:00:02]} Kd3 {[%emt 0:00:01]} 121. Rd7 {[%emt 0:00:01]} 1/2-1/2